Body,Body Name,Date,TransNo,Amount � (Excl VAT),Supplier name,Description,Expense Area,Expense Type,Expense Code,
http://opendatacommunities.org/id/london-borough-council/sutton,London Borough of Sutton,31/12/2019,1289495,0.00 , FACEBK  CGYU8REXK2,FACEBOOK ADVERTISING,Unknown or multiple Directorates,Exchange Diff Account,9995,
http://opendatacommunities.org/id/london-borough-council/sutton,London Borough of Sutton,16/01/2020,1289495,33.32 , AMZNMKTPLACE,TOYS/EQUIPMENT,Peoples Services Directorate,Other Equipment - Purchase,F015,
http://opendatacommunities.org/id/london-borough-council/sutton,London Borough of Sutton,13/01/2020,1289495,45.45 , W M MORRISONS.COM,GROCERIES,Peoples Services Directorate,Provisions - General,F150,
http://opendatacommunities.org/id/london-borough-council/sutton,London Borough of Sutton,30/12/2019,1289495,54.80 , W M MORRISONS.COM,GROCERIES,Peoples Services Directorate,Provisions - General,F150,
http://opendatacommunities.org/id/london-borough-council/sutton,London Borough of Sutton,09/12/2019,1289495,74.45 , W M MORRISONS.COM,GROCERIES,Peoples Services Directorate,Refreshments,F155,
http://opendatacommunities.org/id/london-borough-council/sutton,London Borough of Sutton,20/01/2020,1289495,64.95 , W M MORRISONS.COM,GROCERIES,Peoples Services Directorate,Refreshments,F155,
http://opendatacommunities.org/id/london-borough-council/sutton,London Borough of Sutton,13/01/2020,1289495,30.95 , ASDA SUPERSTORE,GROCERIES,Peoples Services Directorate,Refreshments,F155,
http://opendatacommunities.org/id/london-borough-council/sutton,London Borough of Sutton,07/01/2020,1289495,85.85 , W M MORRISONS.COM,GROCERIES,Peoples Services Directorate,Refreshments,F155,
http://opendatacommunities.org/id/london-borough-council/sutton,London Borough of Sutton,03/01/2020,1289495,154.50 , TVLICENSING.CO.UK,154.50 - F450 0037 9999 - TV LICENSE RENEWAL FOR THE QUAD.PNG,Peoples Services Directorate,Subscriptions - General,F450,
http://opendatacommunities.org/id/london-borough-council/sutton,London Borough of Sutton,20/01/2020,1289495,65.00 , EB  CACHE CONFERENCE 2,CACHE CONFERENCE LONDON,Peoples Services Directorate,Conferences - Fees,A525,
http://opendatacommunities.org/id/london-borough-council/sutton,London Borough of Sutton,05/01/2020,1289495,20.00 , OYSTER BUS AUTOLOAD,OYSTER TOP UP,Peoples Services Directorate,Staff Travelling Expenses,E130,
http://opendatacommunities.org/id/london-borough-council/sutton,London Borough of Sutton,13/01/2020,1289495,37.09 , BOOKDEPOSITORY.COM,BOOK AND REVISION GUIDES,Peoples Services Directorate,Books,F006,
http://opendatacommunities.org/id/london-borough-council/sutton,London Borough of Sutton,05/01/2020,1289495,80.00 , AMAZON PRIME 8H6TP88Q5,PRIME BUSINESS MEMBERSHIP FEE,Peoples Services Directorate,Other Equipment - Purchase,F015,
http://opendatacommunities.org/id/london-borough-council/sutton,London Borough of Sutton,23/01/2020,1289495,229.99 , 123 REG LTD,DOMAIN WILDCARD,Peoples Services Directorate,IT Licences,F385,
http://opendatacommunities.org/id/london-borough-council/sutton,London Borough of Sutton,23/01/2020,1289495,3.32 , AMZNMKTPLACE,MULTI COLOUR DOT STICKERS,Peoples Services Directorate,Advertising/Publicity (non Staff),F240,
http://opendatacommunities.org/id/london-borough-council/sutton,London Borough of Sutton,21/01/2020,1289495,31.66 , WWW.INSTANTPRINT.C,WORLD MAP POSTER,Peoples Services Directorate,Advertising/Publicity (non Staff),F240,
http://opendatacommunities.org/id/london-borough-council/sutton,London Borough of Sutton,15/01/2020,1289495,103.95 , AFORDAWARDS.CO.UK,SUTTON COLLEGE AWARDS PRESENTATION,Peoples Services Directorate,Advertising/Publicity (non Staff),F240,
http://opendatacommunities.org/id/london-borough-council/sutton,London Borough of Sutton,14/01/2020,1289495,4.14 ,,SLIVER YEARLY NON-PROFIT SUBSCRIPTION,Peoples Services Directorate,Advertising/Publicity (non Staff),F240,
http://opendatacommunities.org/id/london-borough-council/sutton,London Borough of Sutton,13/01/2020,1289495,195.00 , JOTFORM INC.,SPLIT - SILVER YEARLY NON-PROFIT 2 (129.62%),Peoples Services Directorate,Advertising/Publicity (non Staff),F240,
http://opendatacommunities.org/id/london-borough-council/sutton,London Borough of Sutton,13/01/2020,1289495,(44.56), JOTFORM INC.,BALANCING ENTRY AMOUNT (-88.86%),Peoples Services Directorate,Advertising/Publicity (non Staff),F240,
http://opendatacommunities.org/id/london-borough-council/sutton,London Borough of Sutton,30/12/2019,1289495,66.04 , MAILCHIMP    MONTHLY,MONTHLY PLAN,Peoples Services Directorate,Advertising/Publicity (non Staff),F240,
http://opendatacommunities.org/id/london-borough-council/sutton,London Borough of Sutton,22/01/2020,1289495,6.12 , FAST KEY SERVICES LIMI,LOWE & FLETCHER 400,Peoples Services Directorate,General Maintenance,D500,
http://opendatacommunities.org/id/london-borough-council/sutton,London Borough of Sutton,23/01/2020,1289495,22.15 , FIRSTAID4LESS.CO.UK,BLUE POWDERED NITRILE GLOVES,Peoples Services Directorate,Health and Safety Equipment,F005,
http://opendatacommunities.org/id/london-borough-council/sutton,London Borough of Sutton,20/01/2020,1289495,87.45 , AMZNMKTPLACE,SNAP FRAMES FOR DOOR TIMETABLES,Peoples Services Directorate,Education Equipment,F009,
http://opendatacommunities.org/id/london-borough-council/sutton,London Borough of Sutton,14/01/2020,1289495,39.98 , NBNI  200115154842421,DATA ANALYST BOOKS,Peoples Services Directorate,Education Equipment,F009,
http://opendatacommunities.org/id/london-borough-council/sutton,London Borough of Sutton,08/01/2020,1289495,150.72 , MACHINE MART WEB,AIRMASTER COMPRESSOR,Peoples Services Directorate,Education Equipment,F009,
http://opendatacommunities.org/id/london-borough-council/sutton,London Borough of Sutton,23/01/2020,1289495,1.66 , ALDI STORES LTD,DEMO MATERIALS L3,Peoples Services Directorate,Education Equipment,F009,
http://opendatacommunities.org/id/london-borough-council/sutton,London Borough of Sutton,20/01/2020,1289495,8.00 , SAINSBURYS SACAT 2006,DEMO MATERIALS L3 & FOUNDATION,Peoples Services Directorate,Education Equipment,F009,
http://opendatacommunities.org/id/london-borough-council/sutton,London Borough of Sutton,20/01/2020,1289495,12.90 , MELBOURNE NURSERY,DEMO MATERIALS L2,Peoples Services Directorate,Education Equipment,F009,
http://opendatacommunities.org/id/london-borough-council/sutton,London Borough of Sutton,13/01/2020,1289495,5.00 , MELBOURNE NURSERY,DEMO MATERIALS L2 & FOUNDATION,Peoples Services Directorate,Education Equipment,F009,
http://opendatacommunities.org/id/london-borough-council/sutton,London Borough of Sutton,13/01/2020,1289495,16.00 , TESCO STORE 3066,DEMO MATERIALS,Peoples Services Directorate,Education Equipment,F009,
http://opendatacommunities.org/id/london-borough-council/sutton,London Borough of Sutton,09/01/2020,1289495,6.80 , WOODCOTE GREEN,DEMO MATERIALS C&G L3,Peoples Services Directorate,Education Equipment,F009,
http://opendatacommunities.org/id/london-borough-council/sutton,London Borough of Sutton,06/01/2020,1289495,5.10 , WAITROSE 677,C&G L2 DEMO MATERIALS,Peoples Services Directorate,Education Equipment,F009,
http://opendatacommunities.org/id/london-borough-council/sutton,London Borough of Sutton,05/01/2020,1289495,3.33 , WAITROSE 677,C&G L2 DEMO MATERIALS,Peoples Services Directorate,Education Equipment,F009,
http://opendatacommunities.org/id/london-borough-council/sutton,London Borough of Sutton,06/01/2020,1289495,24.25 , SAINSBURYS SACAT 2006,COOKERY INGREDIENTS,Peoples Services Directorate,Education Equipment,F009,
http://opendatacommunities.org/id/london-borough-council/sutton,London Borough of Sutton,21/01/2020,1289495,4.20 , WILKO RETAIL LIMITED,COOKERY MATERIALS,Peoples Services Directorate,Education Equipment,F009,
http://opendatacommunities.org/id/london-borough-council/sutton,London Borough of Sutton,21/01/2020,1289495,4.00 , SAINSBURYS SACAT 2006,COOKERY EQUIPMENT,Peoples Services Directorate,Education Equipment,F009,
http://opendatacommunities.org/id/london-borough-council/sutton,London Borough of Sutton,20/01/2020,1289495,18.40 , LIDL GB LONDON,COOKERY INGREDIENTS,Peoples Services Directorate,Education Equipment,F009,
http://opendatacommunities.org/id/london-borough-council/sutton,London Borough of Sutton,15/01/2020,1289495,11.55 , SAINSBURYS SACAT 2006,COOKERY EQUIPMENT,Peoples Services Directorate,Education Equipment,F009,
http://opendatacommunities.org/id/london-borough-council/sutton,London Borough of Sutton,13/01/2020,1289495,14.49 , LIDL GB LONDON,COOKERY MATERIALS,Peoples Services Directorate,Education Equipment,F009,
http://opendatacommunities.org/id/london-borough-council/sutton,London Borough of Sutton,25/01/2020,1289495,20.00 , OYSTER AUTO-TOP UP,20.00 - A530 0301 9999 - OYSTER TOP UP,Peoples Services Directorate,Travelling and Subsistence Allowances,A530,
http://opendatacommunities.org/id/london-borough-council/sutton,London Borough of Sutton,24/01/2020,1289495,20.00 , OYSTER AUTO-TOP UP,20.00 - A530 0301 9999 - OYSTER TOP UP,Peoples Services Directorate,Travelling and Subsistence Allowances,A530,
http://opendatacommunities.org/id/london-borough-council/sutton,London Borough of Sutton,11/01/2020,1289495,20.00 , OYSTER BUS AUTOLOAD,20.00 - A530 0301 9999,Peoples Services Directorate,Travelling and Subsistence Allowances,A530,
http://opendatacommunities.org/id/london-borough-council/sutton,London Borough of Sutton,09/01/2020,1289495,20.00 , OYSTER ONLINE,20.00 - A530 0301 9999 - OYSTER TOP UP,Peoples Services Directorate,Travelling and Subsistence Allowances,A530,
http://opendatacommunities.org/id/london-borough-council/sutton,London Borough of Sutton,16/01/2020,1289495,20.00 , OYSTER BUS AUTOLOAD,20.00 - A530 0301 9999 - OYSTER TOP UP,Peoples Services Directorate,Travelling and Subsistence Allowances,A530,
http://opendatacommunities.org/id/london-borough-council/sutton,London Borough of Sutton,04/01/2020,1289495,20.00 , OYSTER BUS AUTOLOAD,20.00 A530 9999,Peoples Services Directorate,Travelling and Subsistence Allowances,A530,
http://opendatacommunities.org/id/london-borough-council/sutton,London Borough of Sutton,08/01/2020,1289495,154.68 , TESCO STORES 5999,PARENTING COURSES AT THE QUAD,Peoples Services Directorate,Personal Requisites,F106,
http://opendatacommunities.org/id/london-borough-council/sutton,London Borough of Sutton,18/01/2020,1289495,20.00 , OYSTER BUS AUTOLOAD,20.00 - A530 0304 9999 - OYSTER TOP UP,Peoples Services Directorate,Travelling and Subsistence Allowances,A530,
http://opendatacommunities.org/id/london-borough-council/sutton,London Borough of Sutton,12/01/2020,1289495,20.00 , OYSTER AUTO-TOP UP,20.00 - A530 0304 9999 - OYSTER TOP UP,Peoples Services Directorate,Travelling and Subsistence Allowances,A530,
http://opendatacommunities.org/id/london-borough-council/sutton,London Borough of Sutton,18/01/2020,1289495,20.00 , OYSTER AUTO-TOP UP,20.00 - A530 0304 9999 - OYSTER TOP U,Peoples Services Directorate,Travelling and Subsistence Allowances,A530,
http://opendatacommunities.org/id/london-borough-council/sutton,London Borough of Sutton,18/01/2020,1289495,20.00 , OYSTER BUS AUTOLOAD,20.00 - A530 0304 9999 - OYSTER TOP UP,Peoples Services Directorate,Travelling and Subsistence Allowances,A530,
http://opendatacommunities.org/id/london-borough-council/sutton,London Borough of Sutton,10/01/2020,1289495,28.51 , LIDL GB LONDON,LC GROCERIES,Peoples Services Directorate,Personal Requisites,F106,
http://opendatacommunities.org/id/london-borough-council/sutton,London Borough of Sutton,10/01/2020,1289495,4.88 , MCDONALDS,KP ACTIVITY,Peoples Services Directorate,Personal Requisites,F106,
http://opendatacommunities.org/id/london-borough-council/sutton,London Borough of Sutton,08/01/2020,1289495,94.75 , THE POST OFFICE,LC PP,Peoples Services Directorate,Personal Requisites,F106,
http://opendatacommunities.org/id/london-borough-council/sutton,London Borough of Sutton,06/01/2020,1289495,36.00 , TVLICENSING.CO.UK,36 - F106 0304 9999 - TV LICENSE ARREARS PAID OFF,Peoples Services Directorate,Personal Requisites,F106,
http://opendatacommunities.org/id/london-borough-council/sutton,London Borough of Sutton,19/01/2020,1289495,25.00 , SAINSBURYS 2006,LN,Peoples Services Directorate,Personal Requisites,F106,
http://opendatacommunities.org/id/london-borough-council/sutton,London Borough of Sutton,17/01/2020,1289495,39.00 , B & Q 1191,MA,Peoples Services Directorate,Personal Requisites,F106,
http://opendatacommunities.org/id/london-borough-council/sutton,London Borough of Sutton,17/01/2020,1289495,5.44 , MCDONALDS911,MA ACTIVITY,Peoples Services Directorate,Personal Requisites,F106,
http://opendatacommunities.org/id/london-borough-council/sutton,London Borough of Sutton,15/01/2020,1289495,22.76 , PPOINT_ HILLS FOOD & W,DR GROCERIES,Peoples Services Directorate,Personal Requisites,F106,
http://opendatacommunities.org/id/london-borough-council/sutton,London Borough of Sutton,15/01/2020,1289495,4.58 , CAFFE NERO SUTTON CARS,JMH ACTIVITY,Peoples Services Directorate,Personal Requisites,F106,
http://opendatacommunities.org/id/london-borough-council/sutton,London Borough of Sutton,13/01/2020,1289495,16.66 , PPOINT_ MICHAEL'S STOR,JC GROCERIES,Peoples Services Directorate,Personal Requisites,F106,
http://opendatacommunities.org/id/london-borough-council/sutton,London Borough of Sutton,13/01/2020,1289495,32.10 , SAINSBURYS SACAT 2006,LC GROCERIES,Peoples Services Directorate,Personal Requisites,F106,
http://opendatacommunities.org/id/london-borough-council/sutton,London Borough of Sutton,13/01/2020,1289495,5.44 , MCDONALDS911,MA ACTIVITY,Peoples Services Directorate,Personal Requisites,F106,
http://opendatacommunities.org/id/london-borough-council/sutton,London Borough of Sutton,26/01/2020,1289495,10.00 , TIMPSON LTD,JC KEY,Peoples Services Directorate,Personal Requisites,F106,
http://opendatacommunities.org/id/london-borough-council/sutton,London Borough of Sutton,24/01/2020,1289495,7.25 , MCDONALD S RESTAURANT,MC ACTIVITY COLLEGE,Peoples Services Directorate,Personal Requisites,F106,
http://opendatacommunities.org/id/london-borough-council/sutton,London Borough of Sutton,23/01/2020,1289495,19.55 , THE POST OFFICE,JL POST,Peoples Services Directorate,Personal Requisites,F106,
http://opendatacommunities.org/id/london-borough-council/sutton,London Borough of Sutton,22/01/2020,1289495,36.85 , TESCO STORE 3235,LIFE SKILLS FOOD,Peoples Services Directorate,Personal Requisites,F106,
http://opendatacommunities.org/id/london-borough-council/sutton,London Borough of Sutton,21/01/2020,1289495,20.71 , BUDGENS,JC,Peoples Services Directorate,Personal Requisites,F106,
http://opendatacommunities.org/id/london-borough-council/sutton,London Borough of Sutton,17/01/2020,1289495,105.00 , IKEA LTD 144 CROYDON M,SH SETTING UP,Peoples Services Directorate,Set Up Costs - Children Leaving Care,H336,
http://opendatacommunities.org/id/london-borough-council/sutton,London Borough of Sutton,14/01/2020,1289495,199.98 , ARGOS LTD,"1026.41 - H336 0304 9999 - ARGOS (SPLIT INTO 2 DIFFERENT ORDERS, SEE THE ABOVE)",Peoples Services Directorate,Set Up Costs - Children Leaving Care,H336,
http://opendatacommunities.org/id/london-borough-council/sutton,London Borough of Sutton,14/01/2020,1289495,826.43 , ARGOS LTD,"1026.41 - H336 0304 9999 - ARGOS (SPLIT INTO 2 DIFFERENT ORDERS, SEE THE BELOW)",Peoples Services Directorate,Set Up Costs - Children Leaving Care,H336,
http://opendatacommunities.org/id/london-borough-council/sutton,London Borough of Sutton,24/01/2020,1289495,101.00 , ARGOS LTD,SN SET UP,Peoples Services Directorate,Set Up Costs - Children Leaving Care,H336,
http://opendatacommunities.org/id/london-borough-council/sutton,London Borough of Sutton,17/01/2020,1289495,990.42 , ARGOS LTD,990.42 - H336 0304 9999 - ARGOS,Peoples Services Directorate,Set Up Costs - Children Leaving Care,H336,
http://opendatacommunities.org/id/london-borough-council/sutton,London Borough of Sutton,07/01/2020,1289495,371.76 , WAYFAIR #3035442964,JJ SETTING UP,Peoples Services Directorate,Set Up Costs - Children Leaving Care,H336,
http://opendatacommunities.org/id/london-borough-council/sutton,London Borough of Sutton,31/12/2019,1289495,190.48 , ARGOS SELLY OAK,MC SETTING UP,Peoples Services Directorate,Set Up Costs - Children Leaving Care,H336,
http://opendatacommunities.org/id/london-borough-council/sutton,London Borough of Sutton,30/12/2019,1289495,764.97 , SUTTON APPLIANCES,SH SETTING UP,Peoples Services Directorate,Set Up Costs - Children Leaving Care,H336,
http://opendatacommunities.org/id/london-borough-council/sutton,London Borough of Sutton,08/01/2020,1289495,708.33 , M & S CARPETS & FL,H301 0304 9999,Peoples Services Directorate,Client Care/Assistance,H301,
http://opendatacommunities.org/id/london-borough-council/sutton,London Borough of Sutton,25/01/2020,1289495,20.00 , OYSTER BUS AUTOLOAD,20.00 - A530 0310 9999 - OYSTER TOP UP,Peoples Services Directorate,Travelling and Subsistence Allowances,A530,
http://opendatacommunities.org/id/london-borough-council/sutton,London Borough of Sutton,25/01/2020,1289495,20.00 , OYSTER AUTO-TOP UP,20.00 - A530 0310 9999 - OYSTER TOP UP,Peoples Services Directorate,Travelling and Subsistence Allowances,A530,
http://opendatacommunities.org/id/london-borough-council/sutton,London Borough of Sutton,11/01/2020,1289495,20.00 , OYSTER AUTO-TOP UP,20.00 - A530 0310 9999 - OYSTER TOP UP,Peoples Services Directorate,Travelling and Subsistence Allowances,A530,
http://opendatacommunities.org/id/london-borough-council/sutton,London Borough of Sutton,08/01/2020,1289495,20.00 , OYSTER BUS AUTOLOAD,20.00 - A530 0310 9999 - OYSTER TOP UP,Peoples Services Directorate,Travelling and Subsistence Allowances,A530,
http://opendatacommunities.org/id/london-borough-council/sutton,London Borough of Sutton,05/01/2020,1289495,20.00 , OYSTER AUTO-TOP UP,20.00 A530 9999,Peoples Services Directorate,Travelling and Subsistence Allowances,A530,
http://opendatacommunities.org/id/london-borough-council/sutton,London Borough of Sutton,08/01/2020,1289495,99.75 , THE POST OFFICE,99.75 - F106 0311 9999  -PASSPORT APPLICATION (1).PDF,Peoples Services Directorate,Personal Requisites,F106,
http://opendatacommunities.org/id/london-borough-council/sutton,London Borough of Sutton,21/01/2020,1289495,544.28 , TRAVELODGE,544.28 - H202 0310 9999 - TRAVELODGE MORDEN BOOKING .PNG,Peoples Services Directorate,Accommodation - Bed and Breakfast,H202,
http://opendatacommunities.org/id/london-borough-council/sutton,London Borough of Sutton,15/01/2020,1289495,539.53 , TRAVELODGE,539.53 H202 0310 9999 TRAVELODGE.PDF,Peoples Services Directorate,Accommodation - Bed and Breakfast,H202,
http://opendatacommunities.org/id/london-borough-council/sutton,London Borough of Sutton,08/01/2020,1289495,529.08 , TRAVELODGE,529.08 - H202 0310 9999 - TRAVELODGE BOOKING .PNG,Peoples Services Directorate,Accommodation - Bed and Breakfast,H202,
http://opendatacommunities.org/id/london-borough-council/sutton,London Borough of Sutton,28/12/2019,1289495,20.00 , OYSTER AUTO-TOP UP,20.00 A530 9999,Peoples Services Directorate,Travelling and Subsistence Allowances,A530,
http://opendatacommunities.org/id/london-borough-council/sutton,London Borough of Sutton,26/01/2020,1289495,20.00 , OYSTER AUTO-TOP UP,20.00 - A530 0311 9999 - OYSTER TOP UP,Peoples Services Directorate,Travelling and Subsistence Allowances,A530,
http://opendatacommunities.org/id/london-borough-council/sutton,London Borough of Sutton,23/01/2020,1289495,20.00 , OYSTER BUS AUTOLOAD,20.00 - A530 0311 9999 - OYSTER TOP UP,Peoples Services Directorate,Travelling and Subsistence Allowances,A530,
http://opendatacommunities.org/id/london-borough-council/sutton,London Borough of Sutton,19/01/2020,1289495,20.00 , OYSTER BUS AUTOLOAD,20.00 - A530 0311 9999 - OYSTER TOP UP,Peoples Services Directorate,Travelling and Subsistence Allowances,A530,
http://opendatacommunities.org/id/london-borough-council/sutton,London Borough of Sutton,18/01/2020,1289495,20.00 , OYSTER BUS AUTOLOAD,20.00 - A530 0311 9999 - OYSTER TOP UP,Peoples Services Directorate,Travelling and Subsistence Allowances,A530,
http://opendatacommunities.org/id/london-borough-council/sutton,London Borough of Sutton,14/01/2020,1289495,20.60 , WWW.WIGHTLINK.CO.UK,20.60 A530 0311 9999 - WIGHTLINK FERRY,Peoples Services Directorate,Travelling and Subsistence Allowances,A530,
http://opendatacommunities.org/id/london-borough-council/sutton,London Borough of Sutton,17/01/2020,1289495,20.00 , OYSTER AUTO-TOP UP,20.00 - A530 0311 9999 - OYSTER TOP UP,Peoples Services Directorate,Travelling and Subsistence Allowances,A530,
http://opendatacommunities.org/id/london-borough-council/sutton,London Borough of Sutton,16/01/2020,1289495,20.00 , OYSTER BUS AUTOLOAD,20.00 - A530 0311 9999 - OYSTER TOP UP,Peoples Services Directorate,Travelling and Subsistence Allowances,A530,
http://opendatacommunities.org/id/london-borough-council/sutton,London Borough of Sutton,24/01/2020,1289495,70.00 , WWW.TEAM-SPORT.CO.UK,70.00 - F106 0311 9999 - TEAM SPORT GO KARTING,Peoples Services Directorate,Personal Requisites,F106,
http://opendatacommunities.org/id/london-borough-council/sutton,London Borough of Sutton,13/01/2020,1289495,2.53 ,,91.99 - F381 0311 9999 - NET NANNY .PNG  (FEE ON PURCHASE OF NET NANNY),Peoples Services Directorate,Purchase of Software,F381,
http://opendatacommunities.org/id/london-borough-council/sutton,London Borough of Sutton,11/01/2020,1289495,91.99 , NETNANNY- 484-856-2789,91.99 - F381 0311 9999 - NET NANNY .PNG,Peoples Services Directorate,IT Equipment - Repair and Maintenance,F382,
http://opendatacommunities.org/id/london-borough-council/sutton,London Borough of Sutton,30/12/2019,1289495,47.74 , TRAVELODGE,47.74 H202 0311 9999 - HOTEL FOR CONTACT.P,Peoples Services Directorate,Accommodation - Bed and Breakfast,H202,
http://opendatacommunities.org/id/london-borough-council/sutton,London Borough of Sutton,21/01/2020,1289495,57.26 , MINICABIT,57.26 - H212 0311 9999 - MINICABIT.PNG,Peoples Services Directorate,C.C.A Travel & Subsistance,H212,
http://opendatacommunities.org/id/london-borough-council/sutton,London Borough of Sutton,14/01/2020,1289495,100.00 , MOVR LIMITED,TRAVEL,Peoples Services Directorate,C.C.A Food & Clothing,H213,
http://opendatacommunities.org/id/london-borough-council/sutton,London Borough of Sutton,16/01/2020,1289495,34.34 , TRAVELODGE,LAC CONTACT,Peoples Services Directorate,Client Care/Assistance,H301,
http://opendatacommunities.org/id/london-borough-council/sutton,London Borough of Sutton,09/01/2020,1289495,20.00 , OYSTER ONLINE,20.00 - A530 0312 9999 - OYSTER TOP UP,Peoples Services Directorate,Travelling and Subsistence Allowances,A530,
http://opendatacommunities.org/id/london-borough-council/sutton,London Borough of Sutton,15/01/2020,1289495,20.00 , OYSTER BUS AUTOLOAD,20.00 - A530 0312 9999 - OYSTER TOP UP,Peoples Services Directorate,Travelling and Subsistence Allowances,A530,
http://opendatacommunities.org/id/london-borough-council/sutton,London Borough of Sutton,16/01/2020,1289495,20.00 , OYSTER BUS AUTOLOAD,20.00 - A530 0312 9999 - OYSTER TOP UP,Peoples Services Directorate,Travelling and Subsistence Allowances,A530,
http://opendatacommunities.org/id/london-borough-council/sutton,London Borough of Sutton,20/01/2020,1289495,33.00 , LBSUTTON,33.00 - F106 0312 9999 - SUTTON BIRTH CERTIFICATE,Peoples Services Directorate,Personal Requisites,F106,
http://opendatacommunities.org/id/london-borough-council/sutton,London Borough of Sutton,09/01/2020,1289495,33.00 , LBSUTTON,33.00 - F106 0312 9999 - SUTTON BIRTH CERTIFICATE,Peoples Services Directorate,Personal Requisites,F106,
http://opendatacommunities.org/id/london-borough-council/sutton,London Borough of Sutton,27/12/2019,1289495,87.50 , HALFORDS ON LINE,LAC - CAR SEAT,Peoples Services Directorate,Personal Requisites,F106,
http://opendatacommunities.org/id/london-borough-council/sutton,London Borough of Sutton,16/01/2020,1289495,11.00 , WILTSHIRE COUNTY C,11 - F106 0312 9999 - BIRTH CERTIFICATE,Peoples Services Directorate,Personal Requisites,F106,
http://opendatacommunities.org/id/london-borough-council/sutton,London Borough of Sutton,21/01/2020,1289495,82.50 , PREMIER INN,ACCOMMODATION,Peoples Services Directorate,Accommodation - Bed and Breakfast,H202,
http://opendatacommunities.org/id/london-borough-council/sutton,London Borough of Sutton,30/12/2019,1289495,64.00 , KARDEN HOUSE,64 - H202 0312 9999 - HOTEL BOOKING FOR CONTACT.,Peoples Services Directorate,Accommodation - Bed and Breakfast,H202,
http://opendatacommunities.org/id/london-borough-council/sutton,London Borough of Sutton,22/01/2020,1289495,108.48 , HOTEL ON BOOKING.COM,108.48 - H202 0312 9999 - BOOKING.COM HILTON HOTEL .PNG,Peoples Services Directorate,Accommodation - Bed and Breakfast,H202,
http://opendatacommunities.org/id/london-borough-council/sutton,London Borough of Sutton,03/01/2020,1289495,48.00 , OYO-BOOKING-136669356,48 - H202 0312 9999 - HOTEL FOR CONTACT .PNG,Peoples Services Directorate,Payments Under the Child Care Act 1980,H210,
http://opendatacommunities.org/id/london-borough-council/sutton,London Borough of Sutton,14/01/2020,1289495,71.82 , MINICABIT,CLIENT TRANSPORT,Peoples Services Directorate,C.C.A Travel & Subsistance,H212,
http://opendatacommunities.org/id/london-borough-council/sutton,London Borough of Sutton,08/01/2020,1289495,20.00 , OYSTER BUS AUTOLOAD,20.00 A530 0318 9999,Peoples Services Directorate,Travelling and Subsistence Allowances,A530,
http://opendatacommunities.org/id/london-borough-council/sutton,London Borough of Sutton,16/01/2020,1289495,(20.00), OYSTER ONLINE,20.00 - A530 0318 9999 - OYSTER TOP UP,Peoples Services Directorate,Travelling and Subsistence Allowances,A530,
http://opendatacommunities.org/id/london-borough-council/sutton,London Borough of Sutton,18/01/2020,1289495,20.00 , OYSTER BUS AUTOLOAD,20.00 - A530 0318 9999 - OYSTER TOP UP,Peoples Services Directorate,Travelling and Subsistence Allowances,A530,
http://opendatacommunities.org/id/london-borough-council/sutton,London Borough of Sutton,17/01/2020,1289495,20.00 , OYSTER AUTO-TOP UP,20.00 - A530 0318 9999 - OYSTER TOP UP,Peoples Services Directorate,Travelling and Subsistence Allowances,A530,
http://opendatacommunities.org/id/london-borough-council/sutton,London Borough of Sutton,01/01/2020,1289495,20.00 , OYSTER BUS AUTOLOAD,20.00 A530 0318 9999,Peoples Services Directorate,Travelling and Subsistence Allowances,A530,
http://opendatacommunities.org/id/london-borough-council/sutton,London Borough of Sutton,29/12/2019,1289495,20.00 , OYSTER BUS AUTOLOAD,20.00 A530 0318 9999.,Peoples Services Directorate,Travelling and Subsistence Allowances,A530,
http://opendatacommunities.org/id/london-borough-council/sutton,London Borough of Sutton,27/12/2019,1289495,(136.80), MINICABIT,LAC TRANSPORT - REFUND,Peoples Services Directorate,C.C.A Travel & Subsistance,H212,
http://opendatacommunities.org/id/london-borough-council/sutton,London Borough of Sutton,27/12/2019,1289495,136.80 , MINICABIT,LAC TRANSPORT,Peoples Services Directorate,C.C.A Travel & Subsistance,H212,
http://opendatacommunities.org/id/london-borough-council/sutton,London Borough of Sutton,31/12/2019,1289495,35.00 , FACEBK  CGYU8REXK2,FACEBOOK ADVERTISING,Peoples Services Directorate,Fees - Other,F299,
http://opendatacommunities.org/id/london-borough-council/sutton,London Borough of Sutton,25/01/2020,1289495,20.00 , OYSTER BUS AUTOLOAD,20.00 - A530 0321 9999 - OYSTER TOP UP,Peoples Services Directorate,Travelling and Subsistence Allowances,A530,
http://opendatacommunities.org/id/london-borough-council/sutton,London Borough of Sutton,11/01/2020,1289495,20.00 , OYSTER AUTO-TOP UP,20.00 - A530 0321 9999 - OYSTER TOP UP,Peoples Services Directorate,Travelling and Subsistence Allowances,A530,
http://opendatacommunities.org/id/london-borough-council/sutton,London Borough of Sutton,16/01/2020,1289495,20.00 , OYSTER BUS AUTOLOAD,20.00 - A530 0321 9999 - OYSTER TOP UP,Peoples Services Directorate,Travelling and Subsistence Allowances,A530,
http://opendatacommunities.org/id/london-borough-council/sutton,London Borough of Sutton,17/01/2020,1289495,47.20 , OXYGEN FREEJUMPING,47.20 - F106 0323 9999 - OXYGEN TRAMPOLINING.PNG,Peoples Services Directorate,Personal Requisites,F106,
http://opendatacommunities.org/id/london-borough-council/sutton,London Borough of Sutton,25/01/2020,1289495,20.00 , OYSTER BUS AUTOLOAD,20.00 - A530 0330 9999 - OYSTER TOP UP,Chief Executive's Directorate,Travelling and Subsistence Allowances,A530,
http://opendatacommunities.org/id/london-borough-council/sutton,London Borough of Sutton,26/01/2020,1289495,20.00 , OYSTER AUTO-TOP UP,20.00 - A530 0359 9999 - OYSTER TOP UP,Peoples Services Directorate,Travelling and Subsistence Allowances,A530,
http://opendatacommunities.org/id/london-borough-council/sutton,London Borough of Sutton,24/01/2020,1289495,20.00 , OYSTER BUS AUTOLOAD,20.00 - A530 0359 9999 - OYSTER TOP UP,Peoples Services Directorate,Travelling and Subsistence Allowances,A530,
http://opendatacommunities.org/id/london-borough-council/sutton,London Borough of Sutton,23/01/2020,1289495,20.00 , OYSTER BUS AUTOLOAD,20.00 - A530 0359 9999 - OYSTER TOP UP,Peoples Services Directorate,Travelling and Subsistence Allowances,A530,
http://opendatacommunities.org/id/london-borough-council/sutton,London Borough of Sutton,19/01/2020,1289495,20.00 , OYSTER AUTO-TOP UP,20.00 - A530 9999 - OYSTER TOP UP,Peoples Services Directorate,Travelling and Subsistence Allowances,A530,
http://opendatacommunities.org/id/london-borough-council/sutton,London Borough of Sutton,12/01/2020,1289495,20.00 , OYSTER AUTO-TOP UP,20.00 - A530 9999 - OYSTER AUTO TOP UP,Peoples Services Directorate,Travelling and Subsistence Allowances,A530,
http://opendatacommunities.org/id/london-borough-council/sutton,London Borough of Sutton,11/01/2020,1289495,20.00 , OYSTER BUS AUTOLOAD,20.00 - A530 9999,Peoples Services Directorate,Travelling and Subsistence Allowances,A530,
http://opendatacommunities.org/id/london-borough-council/sutton,London Borough of Sutton,10/01/2020,1289495,20.00 , OYSTER AUTO-TOP UP,20.00 - A530 0359 9999 - OYSTER UP UP,Peoples Services Directorate,Travelling and Subsistence Allowances,A530,
http://opendatacommunities.org/id/london-borough-council/sutton,London Borough of Sutton,16/01/2020,1289495,20.00 , OYSTER BUS AUTOLOAD,20.00 - A530 9999 - OYSTER TOP UP,Peoples Services Directorate,Travelling and Subsistence Allowances,A530,
http://opendatacommunities.org/id/london-borough-council/sutton,London Borough of Sutton,16/01/2020,1289495,20.00 , OYSTER BUS AUTOLOAD,20.00 - A530 0359 9999 - OYSTER TOP UP,Peoples Services Directorate,Travelling and Subsistence Allowances,A530,
http://opendatacommunities.org/id/london-borough-council/sutton,London Borough of Sutton,18/01/2020,1289495,20.00 , OYSTER BUS AUTOLOAD,20.00 - A530 0359 9999 - OYSTER TOP UP,Peoples Services Directorate,Travelling and Subsistence Allowances,A530,
http://opendatacommunities.org/id/london-borough-council/sutton,London Borough of Sutton,16/01/2020,1289495,20.00 , OYSTER ONLINE,20.00 - A530 9999 - OYSTER TOP UP,Peoples Services Directorate,Travelling and Subsistence Allowances,A530,
http://opendatacommunities.org/id/london-borough-council/sutton,London Borough of Sutton,08/01/2020,1289495,20.00 , OYSTER BUS AUTOLOAD,TRAVEL,Peoples Services Directorate,Travelling and Subsistence Allowances,A530,
http://opendatacommunities.org/id/london-borough-council/sutton,London Borough of Sutton,05/01/2020,1289495,20.00 , OYSTER BUS AUTOLOAD,20.00 A530 9999,Peoples Services Directorate,Travelling and Subsistence Allowances,A530,
http://opendatacommunities.org/id/london-borough-council/sutton,London Borough of Sutton,25/01/2020,1289495,20.00 , OYSTER BUS AUTOLOAD,20.00 - A530 0359 9999 - OYSTER TOP UP 19TH JAN .PNG,Peoples Services Directorate,Travelling and Subsistence Allowances,A530,
http://opendatacommunities.org/id/london-borough-council/sutton,London Borough of Sutton,18/01/2020,1289495,20.00 , OYSTER BUS AUTOLOAD,20.00 - A530 0359 9999 - OYSTER TOP UP 19TH JAN .PNG,Peoples Services Directorate,Travelling and Subsistence Allowances,A530,
http://opendatacommunities.org/id/london-borough-council/sutton,London Borough of Sutton,11/01/2020,1289495,20.00 , OYSTER BUS AUTOLOAD,20.00 - A530 0359 9999 - OYSTER TOP UP 11TH JAN .PNG,Peoples Services Directorate,Travelling and Subsistence Allowances,A530,
http://opendatacommunities.org/id/london-borough-council/sutton,London Borough of Sutton,22/01/2020,1289495,395.00 , WWW.PMGLTD.CO.UK,CONFERENCE,Chief Executive's Directorate,Training - Course Fees,A520,
http://opendatacommunities.org/id/london-borough-council/sutton,London Borough of Sutton,06/01/2020,1289495,40.00 , AMAZON.CO.UK BD3FS1MV5,SPLIT - A FOR AMAZON -  AMAZON.CO.UK EGIFT VOUCHER (100%),Chief Executive's Directorate,Client Care/Assistance,H301,
http://opendatacommunities.org/id/london-borough-council/sutton,London Borough of Sutton,06/01/2020,1289495,40.00 , AMAZON.CO.UK 220EZ34N5,SPLIT - A FOR AMAZON -  AMAZON.CO.UK EGIFT VOUCHER (100%),Chief Executive's Directorate,Client Care/Assistance,H301,
http://opendatacommunities.org/id/london-borough-council/sutton,London Borough of Sutton,23/01/2020,1289495,143.32 , AMZNMKTPLACE,"SPLIT - CHERRY TREE FURNITURE EXECUTIVE RECLINE EXTRA PADDED SWIVEL OFFICE CHAIR (STANDARD, BLACK) (89.6%)",Peoples Services Directorate,Client Care/Assistance,H301,
http://opendatacommunities.org/id/london-borough-council/sutton,London Borough of Sutton,23/01/2020,1289495,16.64 , AMZNMKTPLACE,BALANCING ENTRY AMOUNT (10.4%),Peoples Services Directorate,Client Care/Assistance,H301,
http://opendatacommunities.org/id/london-borough-council/sutton,London Borough of Sutton,23/01/2020,1289495,10.92 , IMAGIN PRODUCTS LTD,ADMIN EQUIPMENT,Peoples Services Directorate,Administrative Equipment,F001,
http://opendatacommunities.org/id/london-borough-council/sutton,London Borough of Sutton,15/01/2020,1289495,20.44 , AMAZON.CO.UK KO9CI94J5,"SPLIT - THE MOOD CARDS: MAKE SENSE OF YOUR MOODS AND EMOTIONS FOR CLARITY, CONFIDENCE AND WELL-BEING (MOOD SERIES) (100%)",Peoples Services Directorate,Administrative Equipment,F001,
http://opendatacommunities.org/id/london-borough-council/sutton,London Borough of Sutton,09/01/2020,1289495,59.50 , AMZNMKTPLACE,"SPLIT - 1 X PERSONALISED PRINTED LANYARD. LANYARD FOR HOLDING A NAME BADGE, ID CARD OR KEYS. RED, BLUE, BLACK, YELLOW, WHITE (BLACK) (100%)",Peoples Services Directorate,Personal Requisites,F106,
http://opendatacommunities.org/id/london-borough-council/sutton,London Borough of Sutton,11/01/2020,1289495,20.00 , OYSTER BUS AUTOLOAD,20.00 - A530 0383 9999 - OYSTER TOP UP,Peoples Services Directorate,Travelling and Subsistence Allowances,A530,
http://opendatacommunities.org/id/london-borough-council/sutton,London Borough of Sutton,16/01/2020,1289495,20.00 , OYSTER BUS AUTOLOAD,TRAVEL,Peoples Services Directorate,Travelling and Subsistence Allowances,A530,
http://opendatacommunities.org/id/london-borough-council/sutton,London Borough of Sutton,11/01/2020,1289495,20.00 , OYSTER BUS AUTOLOAD,TRAVEL,Peoples Services Directorate,Travelling and Subsistence Allowances,A530,
http://opendatacommunities.org/id/london-borough-council/sutton,London Borough of Sutton,14/01/2020,1289495,20.00 , OYSTER ONLINE,20.00 - A530 0383 9999 - OYSTER TOP UP,Peoples Services Directorate,Travelling and Subsistence Allowances,A530,
http://opendatacommunities.org/id/london-borough-council/sutton,London Borough of Sutton,16/01/2020,1289495,20.00 , OYSTER ONLINE,20.00 - A530 0383 9999 - OYSTER TOP UP,Peoples Services Directorate,Travelling and Subsistence Allowances,A530,
http://opendatacommunities.org/id/london-borough-council/sutton,London Borough of Sutton,02/01/2020,1289495,16.67 , OYSTER BUS AUTOLOAD,TRAVEL,Peoples Services Directorate,Travelling and Subsistence Allowances,A530,
http://opendatacommunities.org/id/london-borough-council/sutton,London Borough of Sutton,06/01/2020,1289495,20.00 , OYSTER AUTO-TOP UP,20.00 A530 0383 9999,Peoples Services Directorate,Travelling and Subsistence Allowances,A530,
http://opendatacommunities.org/id/london-borough-council/sutton,London Borough of Sutton,21/01/2020,1289495,30.65 , OYSTER ONLINE,30.65 A530 0383 9999 OYSTER CARD.PDF,Peoples Services Directorate,Travelling and Subsistence Allowances,A530,
http://opendatacommunities.org/id/london-borough-council/sutton,London Borough of Sutton,10/01/2020,1289495,69.84 , IMAGIN PRODUCTS LTD,69.84 - F001 0380 9999 - IMAGIN PRODUCTS LTD .PNG,Peoples Services Directorate,Administrative Equipment,F001,
http://opendatacommunities.org/id/london-borough-council/sutton,London Borough of Sutton,27/12/2019,1289495,208.33 , MELVILLE CARS LTD,TRAVEL,Peoples Services Directorate,C.C.A Travel & Subsistance,H212,
http://opendatacommunities.org/id/london-borough-council/sutton,London Borough of Sutton,25/01/2020,1289495,20.00 , OYSTER AUTO-TOP UP,20.00 - A530 0384 9999 - OYSTER TOP UP,Peoples Services Directorate,Travelling and Subsistence Allowances,A530,
http://opendatacommunities.org/id/london-borough-council/sutton,London Borough of Sutton,18/01/2020,1289495,20.00 , OYSTER BUS AUTOLOAD,20.00 - A530 0384 9999 - OYSTER TOP UP,Peoples Services Directorate,Travelling and Subsistence Allowances,A530,
http://opendatacommunities.org/id/london-borough-council/sutton,London Borough of Sutton,16/01/2020,1289495,20.00 , OYSTER AUTO-TOP UP,20.00 - A530 0384 9999 - OYSTER TOP UP,Peoples Services Directorate,Travelling and Subsistence Allowances,A530,
http://opendatacommunities.org/id/london-borough-council/sutton,London Borough of Sutton,08/01/2020,1289495,(49.59), MINICABIT,REFUND,Peoples Services Directorate,C.C.A Travel & Subsistance,H212,
http://opendatacommunities.org/id/london-borough-council/sutton,London Borough of Sutton,07/01/2020,1289495,49.59 , MINICABIT,COURT APPEARANCE,Peoples Services Directorate,C.C.A Travel & Subsistance,H212,
http://opendatacommunities.org/id/london-borough-council/sutton,London Borough of Sutton,22/01/2020,1289495,9.16 , AMAZON.CO.UK ZI7FJ5M05,SPLIT - ORCHARD TOYS TUMMY ACHE GAME (36.67%),Peoples Services Directorate,LAC - Education,F269,
http://opendatacommunities.org/id/london-borough-council/sutton,London Borough of Sutton,20/01/2020,1289495,24.95 , WWW.SCHOOLSTICKERS.CO.,ACHIEVEMENT STICKERS FOR CLA PEP MEETINGS,Peoples Services Directorate,LAC - Education,F269,
http://opendatacommunities.org/id/london-borough-council/sutton,London Borough of Sutton,17/01/2020,1289495,500.00 , AMAZON.CO.UK BH18395L5,SPLIT - AMAZON.CO.UK GIFT CARD FOR ANY AMOUNT IN A BLACK AND SILVER MINI ENVELOPE (100%),Peoples Services Directorate,LAC - Education,F269,
http://opendatacommunities.org/id/london-borough-council/sutton,London Borough of Sutton,10/01/2020,1289495,8.17 , AMAZON.CO.UK W76WZ3QA5,SPLIT - ENGLISH-KURDISH BILINGUAL CHILDREN'S PICTURE DICTIONARY BOOK OF COLORS (FREEBILINGUALBOOKS.COM) (100%),Peoples Services Directorate,LAC - Education,F269,
http://opendatacommunities.org/id/london-borough-council/sutton,London Borough of Sutton,09/01/2020,1289495,212.10 , OPTIMALPRINT OPTIMALPR,REWARD POSTCARDS FOR CLA EDUCATIONAL ACHIEVEMENTS,Peoples Services Directorate,LAC - Education,F269,
http://opendatacommunities.org/id/london-borough-council/sutton,London Borough of Sutton,09/01/2020,1289495,5.97 , AMAZON.CO.UK 1547D3MS5,SPLIT - EASY LEARNING ENGLISH CONVERSATION (COLLINS EASY LEARNING ENGLISH) (100%),Peoples Services Directorate,LAC - Education,F269,
http://opendatacommunities.org/id/london-borough-council/sutton,London Borough of Sutton,09/01/2020,1289495,4.91 , AMAZON.CO.UK 5272R3FO5,SPLIT - HANDWRITING TODAY: BK. 1 (HANDWRITING TODAY) (30.88%),Peoples Services Directorate,LAC - Education,F269,
http://opendatacommunities.org/id/london-borough-council/sutton,London Borough of Sutton,09/01/2020,1289495,10.99 , AMAZON.CO.UK 5272R3FO5,SPLIT - KURDISH (SORANI)-ENGLISH / ENGLISH-KURDISH (SORANI) DICTIONARY AND PHRASEBOOK (69.12%),Peoples Services Directorate,LAC - Education,F269,
http://opendatacommunities.org/id/london-borough-council/sutton,London Borough of Sutton,07/01/2020,1289495,44.99 , WWW.ASOS.COM,HAIRDRESSING UNIFORM FOR CLA APPRENTICESHIP,Peoples Services Directorate,LAC - Education,F269,
http://opendatacommunities.org/id/london-borough-council/sutton,London Borough of Sutton,07/01/2020,1289495,23.32 , SPREADSHIRT.NET,TSHIRT TO SUPPORT CLA LONDON MARATHON PARTICIPATION / PROMOTION,Peoples Services Directorate,LAC - Education,F269,
http://opendatacommunities.org/id/london-borough-council/sutton,London Borough of Sutton,02/01/2020,1289495,12.55 , WWW.SCHOOLSTICKERS.CO.,REWARD STICKERS,Peoples Services Directorate,LAC - Education,F269,
http://opendatacommunities.org/id/london-borough-council/sutton,London Borough of Sutton,22/01/2020,1289495,4.16 , AMAZON.CO.UK ZI7FJ5M05,SPLIT - ORCHARD TOYS LITTLE BUG BINGO MINI GAME (16.65%),Peoples Services Directorate,LAC - Education,F269,
http://opendatacommunities.org/id/london-borough-council/sutton,London Borough of Sutton,22/01/2020,1289495,4.99 , AMAZON.CO.UK ZI7FJ5M05,SPLIT - TRUCKS AND DIGGERS SNAP (USBORNE SNAP CARDS) (19.99%),Peoples Services Directorate,LAC - Education,F269,
http://opendatacommunities.org/id/london-borough-council/sutton,London Borough of Sutton,22/01/2020,1289495,6.67 , AMAZON.CO.UK ZI7FJ5M05,SPLIT - ORCHARD TOYS DIRTY DINOS (26.69%),Peoples Services Directorate,LAC - Education,F269,
http://opendatacommunities.org/id/london-borough-council/sutton,London Borough of Sutton,22/01/2020,1289495,25.00 , OYSTER ONLINE,OYSTERCARD TOP UP,"Environment, Housing & Regeneration Directorate",General Office Expenses,F235,
http://opendatacommunities.org/id/london-borough-council/sutton,London Borough of Sutton,05/01/2020,1289495,42.37 , AMZNMKTPLACE,ROSEHILL ENGAGEMENT EVENTS - MATERIALS,"Environment, Housing & Regeneration Directorate",Corporate Publicity,F356,
http://opendatacommunities.org/id/london-borough-council/sutton,London Borough of Sutton,09/01/2020,1289495,20.00 , OYSTER AUTO-TOP UP,OYSTER CARD TOP UP,"Environment, Housing & Regeneration Directorate",General Office Expenses,F235,
http://opendatacommunities.org/id/london-borough-council/sutton,London Borough of Sutton,03/01/2020,1289495,8.32 , SPOTIFY UK,MUSIC FOR CEREMONIES,Resources Directorate,Subscriptions - General,F450,
http://opendatacommunities.org/id/london-borough-council/sutton,London Borough of Sutton,24/01/2020,1289495,14.06 , ALDI STORES LTD,REFRESHMENTS CITIZENSHIP/MEETINGS,Resources Directorate,Miscellaneous Expenses,F620,
http://opendatacommunities.org/id/london-borough-council/sutton,London Borough of Sutton,20/01/2020,1289495,7.37 , AMZNMKTPLACE AMAZON.CO,LARGE TRAY FOR SERVING DRINKS,Resources Directorate,Miscellaneous Expenses,F620,
http://opendatacommunities.org/id/london-borough-council/sutton,London Borough of Sutton,09/01/2020,1289495,11.00 , SAINSBURYS 0038,TISSUES AND MILK,Resources Directorate,Miscellaneous Expenses,F620,
http://opendatacommunities.org/id/london-borough-council/sutton,London Borough of Sutton,03/01/2020,1289495,25.90 , AMZNMKTPLACE,RING CUSHION AND FOUNTAIN PEN,Resources Directorate,Miscellaneous Expenses,F620,
http://opendatacommunities.org/id/london-borough-council/sutton,London Borough of Sutton,17/01/2020,1289495,20.00 , TFL AUTOSETTLEMENT,OYSTERCARD TOP UP,HRA,General Office Expenses,F235,
http://opendatacommunities.org/id/london-borough-council/sutton,London Borough of Sutton,03/01/2020,1289495,84.71 , WWW.LUCASHOUSEHOTEL.CO,ACCOMODATION - COURSE,Chief Executive's Directorate,Hotel Accomodation,A512,
http://opendatacommunities.org/id/london-borough-council/sutton,London Borough of Sutton,02/01/2020,1289495,60.34 , TRAINLINE,TRAVEL BIRMINGHAM COURSE,Chief Executive's Directorate,Travelling and Subsistence Allowances,A530,
http://opendatacommunities.org/id/london-borough-council/sutton,London Borough of Sutton,23/01/2020,1289495,20.00 , OYSTER AUTO-TOP UP,TEAM OYSTER,Chief Executive's Directorate,Travelling and Subsistence Allowances,A530,
http://opendatacommunities.org/id/london-borough-council/sutton,London Borough of Sutton,16/01/2020,1289495,20.00 , OYSTER AUTO-TOP UP,TEAM OYSTER,Chief Executive's Directorate,Travelling and Subsistence Allowances,A530,
http://opendatacommunities.org/id/london-borough-council/sutton,London Borough of Sutton,11/01/2020,1289495,20.00 , OYSTER AUTO-TOP UP,TEAM OYSTER,Chief Executive's Directorate,Travelling and Subsistence Allowances,A530,
http://opendatacommunities.org/id/london-borough-council/sutton,London Borough of Sutton,11/01/2020,1289495,20.00 , OYSTER BUS AUTOLOAD,TEAM OYSTER,Chief Executive's Directorate,Travelling and Subsistence Allowances,A530,
http://opendatacommunities.org/id/london-borough-council/sutton,London Borough of Sutton,03/01/2020,1289495,84.71 , WWW.LUCASHOUSEHOTEL.CO,TEAM OYSTER,Chief Executive's Directorate,Travelling and Subsistence Allowances,A530,
http://opendatacommunities.org/id/london-borough-council/sutton,London Borough of Sutton,15/01/2020,1289495,4.86 , MAILCHIMP    MONTHLY,WEB HOSTING EXCHANGE FEE,Chief Executive's Directorate,Fees - Computer Software,F384,
http://opendatacommunities.org/id/london-borough-council/sutton,London Borough of Sutton,14/01/2020,1289495,176.76 , MAILCHIMP    MONTHLY,WEB HOSTING,Chief Executive's Directorate,Fees - Computer Software,F384,
http://opendatacommunities.org/id/london-borough-council/sutton,London Borough of Sutton,23/01/2020,1289495,143.25 , FACEBK NZRCDSJAL2,FACEBOOK ADVERTISING,Chief Executive's Directorate,Corporate Publicity,F356,
http://opendatacommunities.org/id/london-borough-council/sutton,London Borough of Sutton,19/01/2020,1289495,172.08 , GOOGLE  ADS8517410550,BALANCING ENTRY AMOUNT (100%),Chief Executive's Directorate,Corporate Publicity,F356,
http://opendatacommunities.org/id/london-borough-council/sutton,London Borough of Sutton,15/01/2020,1289495,113.71 , WWW.BANNERBOX.CO.UK,UNION JACK FLAG FOR SUTTON CIVIC OFFICES,Resources Directorate,Materials - General,F100,
http://opendatacommunities.org/id/london-borough-council/sutton,London Borough of Sutton,20/01/2020,1289495,59.12 , TRAINLINE,TRAIN TICKET FOR CLLR. FROM EUSTON TO COVENTRY,Resources Directorate,Members Expenses - Other,F402,
http://opendatacommunities.org/id/london-borough-council/sutton,London Borough of Sutton,22/01/2020,1289495,430.79 , AMZNMKTPLACE,PURCHASE CAMERA EQUIPMENT FOR COMMS TEAM,Chief Executive's Directorate,Other Equipment - Purchase,F015,
http://opendatacommunities.org/id/london-borough-council/sutton,London Borough of Sutton,17/01/2020,1289495,11.99 , HOO HOOTSUITE INC,HOOTSUITE SUBSCRIPTION,Chief Executive's Directorate,Corporate Publicity,F356,
http://opendatacommunities.org/id/london-borough-council/sutton,London Borough of Sutton,24/01/2020,1289495,51.22 , AMZNMKTPLACE,REDACTION PENS FOR SAR,"Environment, Housing & Regeneration Directorate",Stationery,F220,
http://opendatacommunities.org/id/london-borough-council/sutton,London Borough of Sutton,24/01/2020,1289495,(180.00), REDACTIVE,REFUND FOR CIFPA LONDON FOR PUBLIC FINANCE CONFERENCE 8-9 JULY 2020,Resources Directorate,Conferences - Fees,A525,
http://opendatacommunities.org/id/london-borough-council/sutton,London Borough of Sutton,22/01/2020,1289495,479.97 , ARGOS LTD,CL&G,Resources Directorate,Grants,F473,
http://opendatacommunities.org/id/london-borough-council/sutton,London Borough of Sutton,19/01/2020,1289495,(80.00), ARGOS LTD,CL&G REFUND,Resources Directorate,Grants,F473,
http://opendatacommunities.org/id/london-borough-council/sutton,London Borough of Sutton,24/01/2020,1289495,389.98 , ARGOS LTD,PURCHASE OF FRIDGE FREEZER & ELECTRIC COOKER FOR CRISIS LOAN,Resources Directorate,Grants,F473,
http://opendatacommunities.org/id/london-borough-council/sutton,London Borough of Sutton,13/01/2020,1289495,205.95 , ARGOS LTD,PURCHASE OF DOUBLE DIVAN FOR CRISIS GRANT,Resources Directorate,Grants,F473,
http://opendatacommunities.org/id/london-borough-council/sutton,London Borough of Sutton,14/01/2020,1289495,595.93 , ARGOS LTD,CL&G,Resources Directorate,Grants,F473,
http://opendatacommunities.org/id/london-borough-council/sutton,London Borough of Sutton,22/01/2020,1289495,33.33 , OYSTER AUTO-TOP UP,REVENUES STAFF TRAVEL,Resources Directorate,Training - Travel and Subsistence,A521,
http://opendatacommunities.org/id/london-borough-council/sutton,London Borough of Sutton,10/01/2020,1289495,33.33 , OYSTER ONLINE,REVENUES STAFF TRAVEL,Resources Directorate,Conferences - Travel and Subsistence,A526,
http://opendatacommunities.org/id/london-borough-council/sutton,London Borough of Sutton,17/01/2020,1289495,(33.33), OYSTER ONLINE,CREDIT FOR REVENUES STAFF TRAVEL,Resources Directorate,Travelling and Subsistence Allowances,A530,
http://opendatacommunities.org/id/london-borough-council/sutton,London Borough of Sutton,15/01/2020,1289495,33.33 , OYSTER AUTO-TOP UP,REVENUES STAFF TRAVEL,Resources Directorate,Travelling and Subsistence Allowances,A530,
http://opendatacommunities.org/id/london-borough-council/sutton,London Borough of Sutton,13/01/2020,1289495,33.33 , OYSTER AUTO-TOP UP,REVENUES STAFF TRAVEL,Resources Directorate,Travelling and Subsistence Allowances,A530,
http://opendatacommunities.org/id/london-borough-council/sutton,London Borough of Sutton,10/01/2020,1289495,33.33 , OYSTER ONLINE,BENEFITS STAFF TRAVEL,Resources Directorate,Training - Travel and Subsistence,A521,
http://opendatacommunities.org/id/london-borough-council/sutton,London Borough of Sutton,24/01/2020,1289495,16.67 , OYSTER AUTO-TOP UP,BENEFITS STAFF TRAVEL,Resources Directorate,Travelling and Subsistence Allowances,A530,
http://opendatacommunities.org/id/london-borough-council/sutton,London Borough of Sutton,10/01/2020,1289495,33.33 , OYSTER ONLINE,BENEFITS STAFF TRAVEL,Resources Directorate,Travelling and Subsistence Allowances,A530,
http://opendatacommunities.org/id/london-borough-council/sutton,London Borough of Sutton,22/01/2020,1289495,20.00 , OYSTER BUS AUTOLOAD,20.00 - A530 6403 9999 - OYSTER TOP UP,Peoples Services Directorate,Travelling and Subsistence Allowances,A530,
http://opendatacommunities.org/id/london-borough-council/sutton,London Borough of Sutton,17/01/2020,1289495,199.00 , BRITISHPSYCHOLOGICALSO,199 - A525 6417 9999 - DISABILITIES CONFERENCE,Peoples Services Directorate,Conferences - Fees,A525,
http://opendatacommunities.org/id/london-borough-council/sutton,London Borough of Sutton,30/12/2019,1289495,299.85 , AMZNMKTPLACE AMAZON.CO,"SPLIT - EASY REACH KIT - INCLUDES 32"" GRABBER, SOCK PULLER, SHOE HORN, BATH SPONGE AND DRESSING STICK. IDEAL FOR HIP REPLACEMENT RECOVERY. (100%)",Peoples Services Directorate,Personal Requisites,F106,
http://opendatacommunities.org/id/london-borough-council/sutton,London Borough of Sutton,05/01/2020,1289495,29.99 , AMZNMKTPLACE,SPLIT - NFC RFID READER/WRITER ACR122U ISO 14443 A/B NFC READER RFID READER CARD READER + FREE SOFTWARE IN WHITE (100%),Peoples Services Directorate,Provisions - General,F150,
